fUSD/lending_fUSD_20240915
["ID","MTS","AMOUNT","RATE_DAILY","PERIOD"]
[338205036,1726385441107,-500.0,0.00012786,2]
[338205038,1726385441117,-612.26,0.00012786,2]
[338205040,1726385441126,-1975.37,0.00012786,2]
[338205042,1726385441135,-9408.61,0.00012786,2]
[338205044,1726385441144,-1760.48,0.00012786,2]
[338205046,1726385441153,-1881.29,0.00012786,2]
[338205048,1726385441163,-2950.4,0.00012786,2]
[338205049,1726385441172,-2876.79,0.00012786,2]
[338205051,1726385441182,-868.53,0.00012786,2]
[338205053,1726385441191,-862.72,0.00012786,2]
[338205055,1726385441201,-2980.36,0.00012786,2]
[338205057,1726385441210,-3728.94,0.00012786,2]
[338205059,1726385441219,-1823.27,0.00012786,2]
[338205061,1726385441229,-3170.47,0.00012786,2]
[338205063,1726385441238,-6592.20009344,0.000128,2]
[338205064,1726385441248,-1284.22,0.00012886,2]
[338205067,1726385441258,-500.0,0.00012886,2]
[338205068,1726385441268,-1420.6,0.00012886,2]
[338205070,1726385441277,-1957.9,0.00012886,2]
[338205090,1726385441530,-500.0,0.00012886,2]
[338205091,1726385441540,-500.0,0.00012886,2]
[338205092,1726385441550,-1096.73,0.00012886,2]
[338205093,1726385441559,-1036.14,0.00012886,2]
[338205094,1726385441569,-1409.71,0.00012886,2]
[338205095,1726385441578,-603.62,0.00012886,2]
[338205096,1726385441588,-1658.82,0.00012886,2]
[338205097,1726385441598,-500.0,0.00012886,2]
[338205098,1726385441607,-583.92,0.00012886,2]
[338205099,1726385441617,-500.0,0.00012886,2]
[338205100,1726385441626,-1140.81,0.00012886,2]
[338205101,1726385441636,-500.0,0.00012886,2]
[338205102,1726385441646,-500.0,0.00012886,2]
[338205103,1726385441656,-500.0,0.00012886,2]
[338205104,1726385441666,-906.53,0.00012886,2]
[338205105,1726385441675,-500.0,0.00012886,2]
[338205106,1726385441687,-403.66991503,0.00012886,2]
[338205107,1726385441696,-1678.87,0.00012886,2]
[338205108,1726385441706,-500.0,0.00012886,2]
[338205109,1726385441716,-500.0,0.00012886,2]
[338205110,1726385441725,-714.44,0.00012886,2]
[338205111,1726385441735,-500.0,0.00012886,2]
[338205112,1726385441745,-500.0,0.00012886,2]
[338205113,1726385441754,-890.6,0.00012886,2]
[338205114,1726385441765,-500.0,0.00012886,2]
[338205115,1726385441774,-500.0,0.00012886,2]
[338205116,1726385441783,-500.0,0.00012886,2]
[338205117,1726385441793,-1628.51,0.00012886,2]
[338205118,1726385441802,-189.091796,0.00012886,2]
[338205119,1726385441811,-500.0,0.00012886,2]
[338205120,1726385441822,-500.0,0.00012886,2]
[338205121,1726385441831,-500.0,0.00012886,2]
[338205122,1726385441841,-500.0,0.00012886,2]
[338205123,1726385441855,-500.0,0.00012886,2]
[338205124,1726385441865,-582.5,0.00012886,2]
[338205125,1726385441874,-1041.39,0.00012886,2]
[338205126,1726385441883,-500.0,0.00012886,2]
[338205127,1726385441892,-500.0,0.00012886,2]
[338205128,1726385441902,-500.0,0.00012886,2]
[338205129,1726385441911,-500.0,0.00012886,2]
[338205130,1726385441921,-500.0,0.00012886,2]
[338205131,1726385441931,-500.0,0.00012886,2]
[338205132,1726385441941,-500.0,0.00012886,2]
[338205133,1726385441950,-500.0,0.00012886,2]
[338205134,1726385441960,-561.73,0.00012886,2]
[338205135,1726385441969,-500.0,0.00012886,2]
[338205136,1726385441979,-532.4,0.00012886,2]
[338205137,1726385441989,-500.0,0.00012886,2]
[338205138,1726385441999,-500.0,0.00012886,2]
[338205139,1726385442008,-500.0,0.00012886,2]
[338205140,1726385442018,-500.0,0.00012886,2]
[338205141,1726385442027,-500.0,0.00012886,2]
[338205142,1726385442037,-500.0,0.00012886,2]
[338205143,1726385442047,-500.0,0.00012886,2]
[338205144,1726385442056,-500.0,0.00012886,2]
[338205145,1726385442066,-500.0,0.00012886,2]
[338205146,1726385442075,-854.36,0.00012886,2]
[338205147,1726385442084,-500.0,0.00012886,2]
[338205148,1726385442094,-957.75,0.00012886,2]
[338205149,1726385442103,-615.18,0.00012886,2]
[338205150,1726385442113,-500.0,0.00012886,2]
[338205151,1726385442122,-1167.66,0.00012886,2]
[338205152,1726385442131,-1180.77,0.00012886,2]
[338205153,1726385442141,-569.36,0.00012886,2]
[338205154,1726385442151,-500.0,0.00012886,2]
[338205155,1726385442160,-538.49,0.00012886,2]
[338205156,1726385442170,-1070.03,0.00012886,2]
[338205157,1726385442179,-1001.76,0.00012886,2]
[338205158,1726385442190,-500.0,0.00012886,2]
[338205159,1726385442199,-500.0,0.00012886,2]
[338205160,1726385442209,-396.01628747,0.00012886,2]
[338205161,1726385442218,-543.2,0.00012886,2]
[338205162,1726385442227,-1185.08,0.00012886,2]
[338205163,1726385442237,-610.99,0.00012886,2]
[338205164,1726385442246,-500.0,0.00012886,2]
[338205165,1726385442255,-1107.79,0.00012886,2]
[338205166,1726385442265,-572.18,0.00012886,2]
[338205167,1726385442275,-500.0,0.00012886,2]
[338205168,1726385442285,-500.0,0.00012886,2]
[338205169,1726385442295,-500.0,0.00012886,2]
[338205170,1726385442305,-500.0,0.00012886,2]
[338205171,1726385442315,-500.0,0.00012886,2]
[338205172,1726385442324,-700.71,0.00012886,2]
[338205173,1726385442334,-500.0,0.00012886,2]
[338205174,1726385442343,-1736.36,0.00012886,2]
[338205175,1726385442353,-500.0,0.00012886,2]
[338205176,1726385442363,-500.0,0.00012886,2]
[338205177,1726385442372,-500.0,0.00012886,2]
[338205178,1726385442382,-1050.6,0.00012886,2]
[338205179,1726385442391,-500.0,0.00012886,2]
[338205180,1726385442400,-500.0,0.00012886,2]
[338205181,1726385442410,-1288.18,0.00012886,2]
[338205182,1726385442420,-716.48,0.00012886,2]
[338205183,1726385442430,-1062.12,0.00012886,2]
[338205184,1726385442440,-500.0,0.00012886,2]
[338205185,1726385442449,-500.0,0.00012886,2]
[338205186,1726385442458,-500.0,0.00012886,2]
[338205187,1726385442467,-500.0,0.00012886,2]
[338205188,1726385442477,-500.0,0.00012886,2]
[338205189,1726385442487,-500.0,0.00012886,2]
[338205190,1726385442496,-575.5,0.00012886,2]
[338205191,1726385442506,-976.81,0.00012886,2]
[338205192,1726385442515,-500.0,0.00012886,2]
[338205193,1726385442525,-568.51,0.00012886,2]
[338205194,1726385442534,-500.0,0.00012886,2]
[338205195,1726385442544,-500.0,0.00012886,2]
[338205196,1726385442554,-500.0,0.00012886,2]
[338205197,1726385442563,-927.76,0.00012886,2]
[338205198,1726385442573,-500.0,0.00012886,2]
[338205199,1726385442583,-500.0,0.00012886,2]
[338205200,1726385442593,-500.0,0.00012886,2]
[338205201,1726385442603,-500.0,0.00012886,2]
[338205202,1726385442613,-564.53,0.00012886,2]
[338205203,1726385442623,-1574.67,0.00012886,2]
[338205204,1726385442632,-708.08,0.00012886,2]
[338205206,1726385442642,-618.72206037,0.00012886,2]
[338205207,1726385442651,-418.48648162,0.00012886,2]
[338205208,1726385442668,-81.51351838,0.00012886,2]
[338205209,1726385442677,-500.0,0.00012886,2]
[338205210,1726385442687,-500.0,0.00012886,2]
[338205211,1726385442697,-500.0,0.00012886,2]
[338205212,1726385442706,-500.0,0.00012886,2]
[338205213,1726385442715,-1012.43,0.00012886,2]
[338205214,1726385442725,-500.0,0.00012886,2]
[338205215,1726385442735,-500.0,0.00012886,2]
[338205216,1726385442745,-500.0,0.00012886,2]
[338205217,1726385442755,-500.0,0.00012886,2]
[338205218,1726385442764,-500.0,0.00012886,2]
[338205219,1726385442774,-620.09,0.00012886,2]
[338205220,1726385442783,-500.0,0.00012886,2]
[338205221,1726385442792,-1519.23,0.00012886,2]
[338205222,1726385442802,-525.09,0.00012886,2]
[338205223,1726385442812,-956.99,0.00012886,2]
[338205224,1726385442821,-500.0,0.00012886,2]
[338205225,1726385442830,-500.0,0.00012886,2]
[338205226,1726385442840,-1055.66,0.00012886,2]
[338205227,1726385442851,-500.0,0.00012886,2]
[338205228,1726385442862,-500.0,0.00012886,2]
[338205229,1726385442871,-500.0,0.00012886,2]
[338205230,1726385442880,-1259.78,0.00012886,2]
[338205231,1726385442891,-1319.76,0.00012886,2]
[338205232,1726385442900,-549.72,0.00012886,2]
[338205233,1726385442909,-1108.39,0.00012886,2]
[338205234,1726385442919,-741.15,0.00012886,2]
[338205235,1726385442928,-729.95,0.00012886,2]
[338205236,1726385442939,-1051.77,0.00012886,2]
[338205237,1726385442949,-493.45917636,0.00012886,2]
[338205238,1726385442958,-1200.26,0.00012886,2]
[338205239,1726385442967,-2198.27,0.00012886,2]
[338205240,1726385442977,-500.0,0.00012886,2]
[338205241,1726385442986,-500.0,0.00012886,2]
[338205242,1726385442995,-1814.32,0.00012886,2]
[338205243,1726385443005,-500.0,0.00012886,2]
[338205244,1726385443014,-1746.93,0.00012886,2]
[338205245,1726385443024,-3562.58,0.00012886,2]
[338205246,1726385443033,-1732.74,0.00012886,2]
[338205247,1726385443043,-500.0,0.00012886,2]
[338205248,1726385443052,-500.0,0.00012886,2]
[338205249,1726385443062,-1522.17,0.00012886,2]
[338205250,1726385443072,-1384.03,0.00012886,2]
[338205251,1726385443081,-500.0,0.00012886,2]
[338205252,1726385443091,-2705.03,0.00012886,2]
[338205253,1726385443100,-500.0,0.00012886,2]
[338205254,1726385443110,-500.0,0.00012886,2]
[338205255,1726385443119,-500.0,0.00012886,2]
[338205256,1726385443128,-1689.93,0.00012886,2]
[338205257,1726385443137,-1164.0,0.00012886,2]
[338205258,1726385443150,-500.0,0.00012886,2]
[338205259,1726385443167,-567.31,0.00012886,2]
[338205260,1726385443179,-500.0,0.00012886,2]
[338205261,1726385443195,-640.4,0.00012886,2]
[338205262,1726385443210,-571.86,0.00012886,2]
[338205263,1726385443224,-1151.59,0.00012886,2]
[338205264,1726385443239,-2002.51,0.00012886,2]
[338205265,1726385443251,-500.0,0.00012886,2]
[338205266,1726385443264,-549.55,0.00012886,2]
[338205270,1726385443279,-500.0,0.00012886,2]
[338205271,1726385443293,-2859.05,0.00012886,2]
[338205272,1726385443308,-567.4,0.00012886,2]
[338205273,1726385443323,-500.0,0.00012886,2]
[338205274,1726385443339,-500.0,0.00012886,2]
[338205275,1726385443354,-1975.97,0.00012886,2]
[338205276,1726385443369,-5835.8,0.00012886,2]
[338205277,1726385443383,-1170.11,0.00012886,2]
[338205278,1726385443400,-500.0,0.00012886,2]
[338205279,1726385443415,-1233.84,0.00012886,2]
[338205280,1726385443426,-2950.91,0.00012886,2]
[338205281,1726385443439,-1300.32,0.00012886,2]
[338205282,1726385443455,-657.41,0.00012886,2]
[338205283,1726385443467,-1817.5,0.00012886,2]
[338205285,1726385443478,-1204.85,0.00012886,2]
[338205287,1726385443492,-500.0,0.00012886,2]
[338205289,1726385443504,-500.0,0.00012886,2]
[338205292,1726385443515,-882.91,0.00012886,2]
[338205294,1726385443528,-500.0,0.00012886,2]
[338205296,1726385443545,-1881.91,0.00012886,2]
[338205299,1726385443557,-1253.87,0.00012886,2]
[338205301,1726385443570,-1488.18,0.00012886,2]
[338205303,1726385443582,-4400.12,0.00012886,2]
[338205305,1726385443595,-500.0,0.00012886,2]
[338205308,1726385443608,-1197.75,0.00012886,2]
[338205310,1726385443620,-500.0,0.00012886,2]
[338205312,1726385443633,-500.0,0.00012886,2]
[338205314,1726385443645,-1760.19,0.00012886,2]
[338205316,1726385443657,-2196.13,0.00012886,2]
[338205319,1726385443669,-500.0,0.00012886,2]
[338205320,1726385443682,-733.94,0.00012886,2]
[338205322,1726385443707,-1838.9,0.00012886,2]
[338205323,1726385443721,-500.0,0.00012886,2]
[338205324,1726385443735,-2086.56,0.00012886,2]
[338205325,1726385443749,-819.02,0.00012886,2]
[338205326,1726385443761,-500.0,0.00012886,2]
[338205327,1726385443774,-500.0,0.00012886,2]
[338205328,1726385443786,-4846.02,0.00012886,2]
[338205329,1726385443799,-500.0,0.00012886,2]
[338205330,1726385443812,-534.97,0.00012886,2]
[338205331,1726385443825,-1055.5,0.00012886,2]
[338205332,1726385443839,-2148.66,0.00012886,2]
[338205333,1726385443856,-808.1,0.00012886,2]
[338205334,1726385443869,-500.0,0.00012886,2]
[338205335,1726385443882,-737.39,0.00012886,2]
[338205336,1726385443895,-500.0,0.00012886,2]
[338205337,1726385443908,-500.0,0.00012886,2]
[338205338,1726385443921,-500.0,0.00012886,2]
[338205339,1726385443935,-1454.3,0.00012886,2]
[338205340,1726385443947,-500.0,0.00012886,2]
[338205341,1726385443960,-668.76,0.00012886,2]
[338205342,1726385443973,-500.0,0.00012886,2]
[338205343,1726385443985,-500.0,0.00012886,2]
[338205344,1726385443998,-880.04,0.00012886,2]
[338205345,1726385444010,-1521.41,0.00012886,2]
[338205346,1726385444022,-500.0,0.00012886,2]
[338205347,1726385444035,-1755.61,0.00012886,2]
[338205348,1726385444047,-516.01,0.00012886,2]
[338205349,1726385444059,-678.58,0.00012886,2]
[338205350,1726385444072,-1419.39,0.00012886,2]
[338205351,1726385444085,-500.0,0.00012886,2]
[338205352,1726385444097,-500.0,0.00012886,2]
[338205353,1726385444110,-500.0,0.00012886,2]
[338205354,1726385444122,-500.0,0.00012886,2]
[338205355,1726385444135,-1160.1,0.00012886,2]
[338205356,1726385444147,-500.0,0.00012886,2]
[338205357,1726385444161,-1521.95,0.00012886,2]
[338205358,1726385444173,-158.10949927,0.00012887,2]
[338205359,1726385444185,-3611.91398038,0.00012958,2]
[338205360,1726385444198,-238.36021636,0.00012958,2]
[338205361,1726385444210,-500.0,0.00012973,2]
[338205362,1726385444224,-500.0,0.00012987,2]
[338205363,1726385444236,-500.0,0.00012987,2]
[338205364,1726385444249,-500.0,0.00012987,2]
[338205365,1726385444262,-500.0,0.00012987,2]
[338205366,1726385444276,-500.0,0.00012987,2]
[338205367,1726385444290,-500.0,0.00012987,2]
[338205368,1726385444305,-500.0,0.00012987,2]
[338205369,1726385444317,-584.96937016,0.00012987,2]
[338205370,1726385444330,-500.0,0.00012987,2]
[338205371,1726385444343,-500.0,0.00012987,2]
[338205372,1726385444357,-500.0,0.00012987,2]
[338205373,1726385444370,-500.0,0.00012987,2]
[338205374,1726385444384,-500.0,0.00012987,2]
[338205375,1726385444398,-1832.1,0.00012987,2]
[338205376,1726385444412,-500.0,0.00012987,2]
[338205377,1726385444426,-1236.4,0.00012987,2]
[338205378,1726385444439,-1374.3,0.00012987,2]
[338205379,1726385444452,-1393.13,0.00012987,2]
[338205380,1726385444466,-500.0,0.00012987,2]
[338205381,1726385444478,-1000.0,0.00012987,2]
[338205382,1726385444491,-500.0,0.00012987,2]
[338205383,1726385444504,-500.0,0.00012987,2]
[338205384,1726385444518,-749.64,0.00012987,2]
[338205385,1726385444532,-1774.82,0.00012987,2]
[338205386,1726385444545,-942.25,0.00012987,2]
[338205387,1726385444559,-500.0,0.00012987,2]
[338205388,1726385444572,-500.0,0.00012987,2]
[338205389,1726385444584,-500.0,0.00012987,2]
[338205390,1726385444599,-675.48,0.00012987,2]
[338205391,1726385444612,-500.0,0.00012987,2]
[338205392,1726385444627,-637.54,0.00012987,2]
[338205393,1726385444640,-937.47,0.00012987,2]
[338205394,1726385444653,-500.0,0.00012987,2]
[338205395,1726385444665,-530.76,0.00012987,2]
[338205396,1726385444678,-500.0,0.00012987,2]
[338205397,1726385444691,-500.0,0.00012987,2]
[338205398,1726385444703,-500.0,0.00012987,2]
[338205399,1726385444716,-500.0,0.00012987,2]
[338205400,1726385444728,-500.0,0.00012987,2]
[338205401,1726385444741,-500.0,0.00012987,2]
[338205402,1726385444753,-852.91,0.00012987,2]
[338205403,1726385444766,-760.64,0.00012987,2]
[338205404,1726385444778,-500.0,0.00012987,2]
[338205405,1726385444790,-500.0,0.00012987,2]
[338205406,1726385444802,-889.02,0.00012987,2]
[338205407,1726385444815,-500.0,0.00012987,2]
[338205408,1726385444827,-500.0,0.00012987,2]
[338205409,1726385444840,-500.0,0.00012987,2]
[338205410,1726385444856,-748.65,0.00012987,2]
[338205411,1726385444868,-597.45,0.00012987,2]
[338205412,1726385444881,-1035.49,0.00012987,2]
[338205413,1726385444895,-1253.7,0.00012987,2]
[338205414,1726385444908,-500.0,0.00012987,2]
[338205415,1726385444920,-500.08,0.00012987,2]
[338205416,1726385444933,-500.0,0.00012987,2]
[338205417,1726385444946,-883.0,0.00012987,2]
[338205418,1726385444958,-727.79,0.00012987,2]
[338205419,1726385444970,-500.0,0.00012987,2]
[338205420,1726385444982,-500.0,0.00012987,2]
[338205421,1726385444994,-578.67,0.00012987,2]
[338205422,1726385445006,-920.05,0.00012987,2]
[338205423,1726385445019,-500.0,0.00012987,2]
[338205424,1726385445031,-500.0,0.00012987,2]
[338205425,1726385445045,-500.0,0.00012987,2]
[338205426,1726385445056,-500.0,0.00012987,2]
[338205427,1726385445069,-612.16,0.00012987,2]
[338205428,1726385445081,-510.37,0.00012987,2]
[338205429,1726385445094,-500.0,0.00012987,2]
[338205430,1726385445107,-605.63,0.00012987,2]
[338205431,1726385445116,-702.99,0.00012987,2]
[338205432,1726385445125,-500.0,0.00012987,2]
[338205433,1726385445136,-500.0,0.00012987,2]
[338205434,1726385445146,-300.0,0.00012987,2]
[338205435,1726385445155,-500.0,0.00012987,2]
[338205436,1726385445164,-500.0,0.00012987,2]
[338205437,1726385445173,-997.16,0.00012987,2]
[338205438,1726385445183,-617.55,0.00012987,2]
[338205439,1726385445192,-500.0,0.00012987,2]
[338205440,1726385445201,-500.0,0.00012987,2]
[338205441,1726385445211,-534.65,0.00012987,2]
[338205442,1726385445221,-1531.06,0.00012987,2]
[338205443,1726385445230,-500.0,0.00012987,2]
[338205444,1726385445239,-500.0,0.00012987,2]
[338205445,1726385445249,-500.0,0.00012987,2]
[338205446,1726385445259,-1275.65,0.00012987,2]
[338205447,1726385445268,-500.0,0.00012987,2]
[338205448,1726385445277,-500.0,0.00012987,2]
[338205449,1726385445287,-1132.87,0.00012987,2]
[338205456,1726385445668,-500.0,0.00012987,2]
[338205457,1726385445697,-1641.72,0.00012987,2]
[338205458,1726385445707,-500.0,0.00012987,2]
[338205459,1726385445716,-962.74,0.00012987,2]
[338205460,1726385445726,-642.27,0.00012987,2]
[338205461,1726385445735,-500.0,0.00012987,2]
[338205462,1726385445744,-500.0,0.00012987,2]
[338205463,1726385445755,-1205.36,0.00012987,2]
[338205464,1726385445764,-560.76,0.00012987,2]
[338205465,1726385445774,-500.0,0.00012987,2]
[338205466,1726385445784,-551.4,0.00012987,2]
[338205467,1726385445793,-500.0,0.00012987,2]
[338205468,1726385445802,-1408.7,0.00012987,2]
[338205469,1726385445812,-500.0,0.00012987,2]
[338205470,1726385445821,-966.26,0.00012987,2]
[338205471,1726385445831,-553.51,0.00012987,2]
[338205472,1726385445840,-500.0,0.00012987,2]
[338205473,1726385445849,-1702.0,0.00012987,2]
[338205474,1726385445858,-500.0,0.00012987,2]
[338205475,1726385445867,-500.0,0.00012987,2]
[338205476,1726385445877,-837.44,0.00012987,2]
[338205477,1726385445886,-1388.33,0.00012987,2]
[338205478,1726385445895,-1061.16,0.00012987,2]
[338205479,1726385445904,-1492.95,0.00012987,2]
[338205480,1726385445914,-736.8,0.00012987,2]
[338205481,1726385445923,-500.0,0.00012987,2]
[338205482,1726385445932,-500.0,0.00012987,2]
[338205483,1726385445941,-1375.53,0.00012987,2]
[338205484,1726385445951,-500.0,0.00012987,2]
[338205485,1726385445960,-643.11,0.00012987,2]
[338205486,1726385445970,-713.53,0.00012987,2]
[338205487,1726385445979,-753.18,0.00012987,2]
[338205488,1726385445989,-500.0,0.00012987,2]
[338205489,1726385445998,-611.67,0.00012987,2]
[338205490,1726385446007,-1330.49,0.00012987,2]
[338205491,1726385446017,-809.5,0.00012987,2]
[338205492,1726385446026,-689.02,0.00012987,2]
[338205493,1726385446035,-1278.36,0.00012987,2]
[338205494,1726385446045,-397.36420149,0.00012987,2]
[338205495,1726385446054,-1345.68,0.00012987,2]
[338205496,1726385446063,-676.31,0.00012987,2]
[338205497,1726385446073,-500.0,0.00012987,2]
[338205498,1726385446083,-1089.1,0.00012987,2]
[338205499,1726385446092,-500.0,0.00012987,2]
[338205500,1726385446102,-1254.98,0.00012987,2]
[338205501,1726385446111,-500.0,0.00012987,2]
[338205502,1726385446121,-688.9,0.00012987,2]
[338205503,1726385446130,-817.26,0.00012987,2]
[338205504,1726385446140,-876.06,0.00012987,2]
[338205505,1726385446149,-1799.33,0.00012987,2]
[338205506,1726385446159,-1127.02,0.00012987,2]
[338205507,1726385446168,-710.82,0.00012987,2]
[338205508,1726385446178,-2049.23,0.00012987,2]
[338205509,1726385446188,-686.15,0.00012987,2]
[338205510,1726385446198,-500.0,0.00012987,2]
[338205511,1726385446207,-2723.01,0.00012987,2]
[338205512,1726385446217,-523.9,0.00012987,2]
[338205513,1726385446226,-500.0,0.00012987,2]
[338205514,1726385446235,-760.18,0.00012987,2]
[338205515,1726385446245,-500.0,0.00012987,2]
[338205516,1726385446255,-639.63,0.00012987,2]
[338205517,1726385446264,-1219.34,0.00012987,2]
[338205518,1726385446274,-689.87,0.00012987,2]
[338205519,1726385446283,-500.0,0.00012987,2]
[338205520,1726385446292,-1389.01,0.00012987,2]
[338205521,1726385446302,-500.0,0.00012987,2]
[338205522,1726385446311,-500.0,0.00012987,2]
[338205523,1726385446321,-567.76,0.00012987,2]
[338205524,1726385446330,-1013.24,0.00012987,2]
[338205525,1726385446340,-1796.16,0.00012987,2]
[338205526,1726385446349,-1492.22,0.00012987,2]
[338205527,1726385446358,-1805.69,0.00012987,2]
[338205528,1726385446368,-500.0,0.00012987,2]
[338205529,1726385446378,-709.22,0.00012987,2]
[338205530,1726385446388,-1050.16,0.00012987,2]
[338205531,1726385446397,-773.28,0.00012987,2]
[338205532,1726385446407,-500.0,0.00012987,2]
[338205533,1726385446416,-500.0,0.00012987,2]
[338205534,1726385446426,-946.08,0.00012987,2]
[338205535,1726385446435,-763.5,0.00012987,2]
[338205536,1726385446444,-964.64,0.00012987,2]
[338205537,1726385446453,-507.15,0.00012987,2]
[338205538,1726385446462,-2106.52,0.00012987,2]
[338205539,1726385446471,-500.0,0.00012987,2]
[338205540,1726385446480,-500.0,0.00012987,2]
[338205541,1726385446490,-500.0,0.00012987,2]
[338205542,1726385446499,-500.0,0.00012987,2]
[338205543,1726385446508,-1138.39,0.00012987,2]
[338205544,1726385446517,-1810.89,0.00012987,2]
[338205545,1726385446527,-500.0,0.00012987,2]
[338205546,1726385446535,-500.0,0.00012987,2]
[338205547,1726385446545,-500.0,0.00012987,2]
[338205548,1726385446554,-500.0,0.00012987,2]
[338205549,1726385446563,-518.17,0.00012987,2]
[338205550,1726385446572,-1436.84,0.00012987,2]
[338205551,1726385446582,-500.0,0.00012987,2]
[338205552,1726385446591,-2779.77,0.00012987,2]
[338205553,1726385446600,-875.32,0.00012987,2]
[338205554,1726385446609,-1362.79,0.00012987,2]
[338205555,1726385446619,-697.6,0.00012987,2]
[338205556,1726385446628,-1579.95,0.00012987,2]
[338205557,1726385446637,-606.65,0.00012987,2]
[338205558,1726385446647,-500.0,0.00012987,2]
[338205559,1726385446656,-1299.4,0.00012987,2]
[338205560,1726385446665,-500.0,0.00012987,2]
[338205561,1726385446674,-500.0,0.00012987,2]
[338205562,1726385446684,-500.0,0.00012987,2]
[338205563,1726385446695,-1240.91,0.00012987,2]
[338205564,1726385446704,-500.0,0.00012987,2]
[338205565,1726385446713,-2119.92,0.00012987,2]
[338205566,1726385446723,-500.0,0.00012987,2]
[338205567,1726385446732,-500.0,0.00012987,2]
[338205568,1726385446742,-681.75,0.00012987,2]
[338205569,1726385446751,-750.16,0.00012987,2]
[338205570,1726385446760,-797.43,0.00012987,2]
[338205571,1726385446769,-500.0,0.00012987,2]
[338205572,1726385446778,-1233.09,0.00012987,2]
[338205573,1726385446787,-1473.79,0.00012987,2]
[338205574,1726385446797,-500.0,0.00012987,2]
[338205575,1726385446806,-623.08,0.00012987,2]
[338205576,1726385446815,-500.0,0.00012987,2]
[338205577,1726385446825,-500.0,0.00012987,2]
[338205578,1726385446834,-500.0,0.00012987,2]
[338205579,1726385446843,-500.0,0.00012987,2]
[338205580,1726385446857,-1163.93,0.00012987,2]
[338205581,1726385446866,-500.0,0.00012987,2]
[338205582,1726385446875,-2205.61,0.00012987,2]
[338205583,1726385446884,-534.94,0.00012987,2]
[338205584,1726385446894,-2522.65,0.00012987,2]
[338205585,1726385446903,-1900.58,0.00012987,2]
[338205586,1726385446912,-3119.38,0.00012987,2]
[338205587,1726385446921,-500.0,0.00012987,2]
[338205588,1726385446933,-615.02,0.00012987,2]
[338205589,1726385446942,-2098.43,0.00012987,2]
[338205590,1726385446952,-500.0,0.00012987,2]
[338205591,1726385446961,-500.0,0.00012987,2]
[338205592,1726385446970,-500.0,0.00012987,2]
[338205593,1726385446979,-2487.98,0.00012987,2]
[338205594,1726385446988,-1726.59,0.00012987,2]
[338205595,1726385446997,-501.22,0.00012987,2]
[338205596,1726385447007,-514.57,0.00012987,2]
[338205597,1726385447016,-500.0,0.00012987,2]
[338205598,1726385447025,-500.0,0.00012987,2]
[338205599,1726385447034,-1604.66,0.00012987,2]
[338205600,1726385447043,-1442.35,0.00012987,2]
[338205601,1726385447053,-612.14,0.00012987,2]